bitfinex/quotes_BTCUSD_20251221
["timestamp","ask_amount","ask_price","bid_price","bid_amount"]
[1766305881347,0.23991,88378.0,88365.0,0.05658348]
[1766305881521,0.24559,88378.0,88368.0,0.31599063]
[1766305881720,0.24559,88378.0,88368.0,0.32730694]
[1766305883896,0.24559,88378.0,88369.0,0.01131618]
[1766305884191,0.24559,88378.0,88368.0,0.32730694]
[1766305885376,0.24559,88378.0,88368.0,0.31599063]
[1766305885819,0.00568,88378.0,88369.0,0.0678971]
[1766305886134,0.00568,88378.0,88371.0,0.05657931]
[1766305886677,0.00568,88378.0,88373.0,0.01131567]
[1766305888364,0.00568,88378.0,88372.0,0.0113158]
[1766305888718,0.00568,88378.0,88371.0,0.01131592]
[1766305889178,0.00568,88378.0,88372.0,0.0113158]
[1766305889645,0.00568,88378.0,88371.0,0.01131592]
[1766305890199,0.12848,88378.0,88371.0,0.01131592]
[1766305890585,0.12848,88378.0,88370.0,0.01131605]
[1766305891507,0.12848,88378.0,88371.0,0.01131592]
[1766305892574,0.1228,88378.0,88371.0,0.01131592]
[1766305893599,0.1228,88378.0,88372.0,0.0113158]
[1766305894053,0.1228,88378.0,88371.0,0.01131592]
[1766305895824,0.1228,88378.0,88372.0,0.0113158]
[1766305896028,0.1228,88378.0,88373.0,0.01131567]
[1766305896235,0.1228,88378.0,88372.0,0.0113158]
[1766305897167,0.1228,88378.0,88373.0,0.07711718]
[1766305897574,0.1228,88378.0,88373.0,0.08843285]
[1766305897744,0.1228,88378.0,88373.0,0.07711718]
[1766305898156,0.00568,88381.0,88373.0,0.07711718]
[1766305898361,0.00190205,88385.0,88380.0,0.05657368]
[1766305898620,0.0305026,88397.0,88386.0,0.011314]
[1766305898621,0.03399681,88396.0,88386.0,0.011314]
[1766305898750,0.11302076,88396.0,88386.0,0.011314]
[1766305898947,0.11302076,88396.0,88385.0,0.01131413]
[1766305899180,6.076e-05,88396.0,88385.0,0.01131413]
[1766305899379,6.076e-05,88396.0,88384.0,0.01131426]
[1766305899380,6.076e-05,88396.0,88386.0,0.016994]
[1766305899537,0.11302076,88396.0,88386.0,0.016994]
[1766305899805,0.11302076,88396.0,88386.0,0.00568]
[1766305900496,0.11302076,88396.0,88386.0,0.016994]
[1766305900721,0.11302076,88396.0,88387.0,0.01131388]
[1766305900967,0.11302076,88396.0,88386.0,0.016994]
[1766305902119,0.11302076,88396.0,88388.0,0.01131375]
[1766305902616,6.076e-05,88396.0,88388.0,0.01131375]
[1766305902861,6.076e-05,88396.0,88389.0,0.01131362]
[1766305903091,6.076e-05,88396.0,88388.0,0.01131375]
[1766305903329,0.00236331,88398.0,88395.0,0.01131285]
[1766305903330,4.07e-06,88398.0,88395.0,0.01131285]
[1766305903568,4.07e-06,88398.0,88395.0,0.01357542]
[1766305903798,4.07e-06,88398.0,88378.0,0.05210572]
[1766305903799,0.11777,88396.0,88378.0,0.05210572]
[1766305904002,4.07e-06,88398.0,88378.0,0.05210572]
[1766305904003,0.11296,88390.0,88379.0,0.00568]
[1766305904213,0.11296,88388.0,88380.0,0.01131477]
[1766305904662,0.11296,88388.0,88379.0,0.00568]
[1766305905098,0.11777,88389.0,88379.0,0.00568]
[1766305906399,0.11777,88389.0,88383.0,0.01131439]
[1766305906599,0.11777,88389.0,88380.0,0.01131477]
[1766305906809,0.11777,88389.0,88382.0,0.01131452]
[1766305907171,0.11296,88393.0,88383.0,0.01131439]
[1766305907474,0.11777,88393.0,88381.0,0.01131464]
[1766305907684,0.11296,88392.0,88382.0,0.01131452]
[1766305907873,0.11296,88392.0,88381.0,0.01131464]
[1766305908075,0.11296,88392.0,88382.0,0.01131452]
[1766305908277,0.00055,88382.0,88379.0,0.00568]
[1766305908612,0.11296,88386.0,88379.0,0.00568]
[1766305909497,0.11296,88386.0,88379.0,0.0169949]
[1766305909705,0.11296,88386.0,88380.0,0.01131477]
[1766305910130,0.11296,88386.0,88379.0,0.0169949]
[1766305910690,0.11296,88386.0,88380.0,0.01131477]
[1766305911293,0.11296,88386.0,88379.0,0.0169949]
[1766305912828,0.11296,88386.0,88380.0,0.01131477]
[1766305913161,0.11777,88388.0,88380.0,0.01131477]
[1766305913340,0.11777,88388.0,88381.0,0.01131464]
[1766305913702,0.11777,88388.0,88380.0,0.01131477]
[1766305913911,0.11777,88388.0,88379.0,0.0169949]
[1766305914159,0.11777,88388.0,88380.0,0.01131477]
[1766305914495,0.11777,88388.0,88373.0,0.05657777]
[1766305914496,0.11777,88379.0,88366.0,0.00568]
[1766305914691,0.11777,88377.0,88366.0,0.00574077]
[1766305915260,0.1101405,88377.0,88366.0,0.00574077]
[1766305916131,0.1101405,88377.0,88367.0,0.01131644]
[1766305916331,0.2231005,88377.0,88366.0,0.01705733]
[1766305916543,0.11296,88376.0,88366.0,0.01705733]
[1766305916750,0.11296,88376.0,88367.0,0.01131644]
[1766305916950,0.11296,88376.0,88368.0,0.01131631]
[1766305917162,0.11296,88376.0,88371.0,0.01131592]
[1766305917163,0.112411,88376.0,88371.0,0.01131592]
[1766305917365,0.112411,88376.0,88372.0,0.0113158]
[1766305917911,0.112411,88376.0,88371.0,0.01131592]
[1766305918117,0.112411,88376.0,88370.0,0.01131605]
[1766305918749,0.112411,88376.0,88369.0,0.01131618]
[1766305918968,0.112411,88376.0,88370.0,0.01131605]
[1766305919420,0.112411,88376.0,88371.0,0.01131592]
[1766305919994,0.112411,88376.0,88372.0,0.0113158]
[1766305920207,0.112411,88376.0,88370.0,0.01131605]
[1766305920684,0.112411,88376.0,88369.0,0.01131618]
[1766305921139,0.1101405,88377.0,88371.0,0.01131592]
[1766305921308,0.00568,88381.0,88371.0,0.01131592]
[1766305921520,0.00568,88381.0,88372.0,0.0113158]
[1766305921914,0.00568,88381.0,88371.0,0.01131592]
[1766305922118,0.00568,88381.0,88372.0,0.0113158]
[1766305922119,0.11864,88381.0,88372.0,0.0113158]
[1766305922382,0.11864,88381.0,88373.0,0.01131567]
[1766305923030,0.12345,88381.0,88372.0,0.0113158]
[1766305923202,0.11777,88380.0,88369.0,0.01131618]
[1766305923415,0.11777,88378.0,88366.0,0.00574077]
[1766305923563,0.000549,88369.0,88366.0,0.07363983]
[1766305923772,0.11296,88377.0,88367.0,0.01131644]
[1766305923976,0.11296,88377.0,88368.0,0.01131631]
[1766305924173,0.11777,88377.0,88368.0,0.01131631]
[1766305924375,0.11777,88377.0,88366.0,0.07364013]
[1766305924376,0.11296,88374.0,88366.0,0.01705733]
[1766305924581,0.11296,88374.0,88366.0,0.00574077]
[1766305924780,0.11296,88374.0,88366.0,0.01705733]
[1766305925595,0.11296,88374.0,88367.0,0.01131644]
[1766305926293,0.11296,88374.0,88366.0,0.01705733]
[1766305926493,0.11296,88374.0,88367.0,0.01131644]
[1766305927711,0.11296,88374.0,88366.0,0.01705733]
[1766305928242,0.11066544,88374.0,88367.0,0.01131644]
[1766305928398,0.11066544,88374.0,88368.0,0.01131631]
[1766305928812,0.11066544,88374.0,88366.0,0.01715733]
[1766305929014,0.11066544,88374.0,88367.0,0.01131644]
[1766305929216,0.11777,88375.0,88367.0,0.01131644]
[1766305929414,0.11777,88375.0,88368.0,0.01131631]
[1766305929601,0.11777,88375.0,88367.0,0.01131644]
[1766305930074,0.11777,88375.0,88369.0,0.01131618]
[1766305930240,0.11777,88375.0,88367.0,0.01131644]
[1766305930489,0.11777,88375.0,88369.0,0.01131618]
[1766305930653,0.11777,88375.0,88370.0,0.01131605]
[1766305930856,0.00568,88381.0,88371.0,0.01131592]
[1766305931060,0.00568,88381.0,88372.0,0.0113158]
[1766305931240,0.00568,88381.0,88373.0,0.01131567]
[1766305931445,0.00568,88381.0,88374.0,0.01131554]
[1766305931637,0.00568,88381.0,88373.0,0.01131567]
[1766305932043,0.00568,88381.0,88376.0,0.01131528]
[1766305932412,0.00568,88381.0,88374.0,0.01131554]
[1766305932413,0.00568,88381.0,88379.0,0.05657452]
[1766305932752,0.0001,88386.0,88383.0,0.01131439]
[1766305933350,0.11262,88391.0,88381.0,0.05657281]
[1766305933351,0.00568,88397.0,88388.0,0.05656868]
[1766305933556,0.00568,88397.0,88391.0,0.01131336]
[1766305933755,0.11283,88407.0,88393.0,0.01131311]
[1766305933983,0.00568,88403.0,88392.0,0.01131324]
[1766305934208,0.00568,88403.0,88391.0,0.01131336]
[1766305934391,0.00568,88403.0,88395.0,0.06787696]
[1766305934598,0.00568,88403.0,88397.0,0.0113126]
[1766305934797,0.00592649,88403.0,88396.0,0.01131272]
[1766305934955,0.00592649,88403.0,88395.0,0.01131285]
[1766305935366,0.00592649,88403.0,88397.0,0.0113126]
[1766305936432,0.00592649,88403.0,88398.0,0.01131247]
[1766305936608,0.00592649,88403.0,88396.0,0.01131272]
[1766305937534,0.00592649,88403.0,88393.0,0.00568]
[1766305937535,0.11286649,88403.0,88393.0,0.00568]
[1766305937743,0.11286649,88403.0,88394.0,0.01131298]
[1766305938120,0.11286649,88403.0,88393.0,0.01699311]
[1766305938327,0.11286649,88403.0,88394.0,0.01131298]
[1766305938551,0.11286649,88403.0,88396.0,0.01131272]
[1766305938759,0.11286649,88403.0,88395.0,0.01131285]
[1766305939179,0.00024649,88403.0,88396.0,0.01131272]
[1766305939389,0.00024649,88403.0,88395.0,0.01131285]
[1766305939594,0.00024649,88403.0,88394.0,0.01131298]
[1766305940518,0.00024649,88403.0,88396.0,0.01131272]
[1766305940725,0.03398884,88411.0,88400.0,0.01131221]
[1766305940726,0.11262,88411.0,88400.0,0.01131221]
[1766305940939,0.00568,88410.0,88402.0,0.01131196]
[1766305941148,0.00568,88410.0,88401.0,0.01131208]
[1766305941789,0.11297802,88411.0,88402.0,0.01131196]
[1766305941982,0.00035802,88411.0,88404.0,0.0113117]
[1766305942194,0.00035802,88411.0,88405.0,0.07711718]
[1766305942821,0.01150901,88425.0,88405.0,0.07711718]
[1766305942822,0.11262,88423.0,88408.0,0.01131119]
[1766305943035,0.00010734,88423.0,88408.0,0.01131119]
[1766305943235,0.00010734,88423.0,88409.0,0.01131106]
[1766305943447,0.00010734,88423.0,88407.0,0.01131132]
[1766305943664,0.00010734,88423.0,88411.0,0.0113108]
[1766305943873,0.00010734,88423.0,88411.0,0.0169908]
[1766305944087,0.00010734,88423.0,88411.0,0.00568]
[1766305944316,0.11272734,88423.0,88411.0,0.00568]
[1766305944512,0.11272734,88423.0,88411.0,0.0169908]
[1766305944919,0.11272734,88423.0,88412.0,0.01131068]
[1766305945170,0.00010734,88423.0,88411.0,0.0169908]
[1766305945384,0.00010734,88423.0,88414.0,0.01131042]
[1766305945625,0.00010734,88423.0,88419.0,0.07711718]
[1766305945844,0.0002,88425.0,88419.0,0.07711718]
[1766305946056,0.0002,88425.0,88419.0,0.07656818]
[1766305948774,0.00568,88426.0,88419.0,0.07656818]
[1766305948980,0.00568,88426.0,88420.0,0.01130965]
[1766305949442,0.2427,88433.0,88426.0,0.00014901]
[1766305949443,0.0002,88433.0,88426.0,0.00014901]
[1766305949625,0.0002,88433.0,88425.0,0.01130901]
[1766305949828,0.0002,88433.0,88424.0,0.01130914]
[1766305949829,0.13289671,88443.0,88424.0,0.01130914]
[1766305949830,0.01698646,88445.0,88426.0,0.00568]
[1766305950036,0.01698646,88445.0,88426.0,0.01698889]
[1766305950337,0.37224713,88450.0,88430.0,0.31571761]
[1766305950338,0.12091,88439.0,88430.0,0.31571761]
[1766305950543,0.01130569,88451.0,88439.0,0.000149]
[1766305950544,0.00568,88446.0,88439.0,0.000149]
[1766305950763,0.05652535,88456.0,88432.0,0.01130812]
[1766305950764,0.01130582,88450.0,88437.0,0.00568]
[1766305950979,0.00010732,88450.0,88440.0,0.31571761]
[1766305951401,0.00010732,88450.0,88437.0,0.06221714]
[1766305951402,0.0004,88440.0,88437.0,0.01130748]
[1766305951634,0.00010732,88450.0,88443.0,0.01130671]
[1766305951841,0.00010732,88450.0,88441.0,0.01698697]
[1766305951842,0.04528,88457.0,88442.0,0.01130684]
[1766305951843,0.05096,88457.0,88442.0,0.01130684]
[1766305952049,0.05105709,88457.0,88442.0,0.01130684]
[1766305952268,0.05105709,88457.0,88441.0,0.00568]
[1766305952269,0.01130505,88456.0,88441.0,0.00568]
[1766305952484,0.25380531,88454.0,88441.0,0.00568]
[1766305952689,0.2425,88454.0,88441.0,0.00568]
[1766305953148,0.2425,88454.0,88442.0,0.00568]
[1766305954189,0.01130531,88454.0,88442.0,0.00568]
[1766305954393,0.12091,88454.0,88438.0,0.01130735]
[1766305954602,0.12091,88454.0,88443.0,0.00568]
[1766305955012,0.00126273,88444.0,88443.0,0.00568]
[1766305955649,0.00071373,88444.0,88443.0,0.00568]
[1766305956064,0.00071373,88444.0,88443.0,0.08279718]
[1766305956281,9.709e-05,88457.0,88445.0,0.01130646]
[1766305956493,0.12168709,88457.0,88447.0,0.0113062]
[1766305956725,9.709e-05,88457.0,88445.0,0.01130646]
[1766305956951,9.709e-05,88457.0,88446.0,0.01130633]
[1766305957165,0.01130326,88470.0,88447.0,0.31571761]
[1766305957417,0.12159,88470.0,88457.0,9.7e-05]
[1766305957641,0.12159,88470.0,88450.0,0.0565286]
[1766305957642,0.00568,88469.0,88460.0,0.3153368]
[1766305957860,0.000549,88460.0,88455.0,0.00568]
[1766305958082,0.000549,88460.0,88456.0,0.00568]
[1766305958295,0.12205,88468.0,88457.0,0.01130492]
[1766305958537,0.12205,88468.0,88456.0,0.01698505]
[1766305958538,0.0113025,88476.0,88468.0,0.000453]
[1766305958539,0.1333525,88476.0,88468.0,0.000453]
[1766305958782,0.1333525,88476.0,88463.0,0.01698416]
[1766305958783,0.12205,88476.0,88463.0,0.01698416]
[1766305959037,0.12205,88476.0,88462.0,0.00568]
[1766305959524,0.01130262,88475.0,88462.0,0.00568]
[1766305959739,0.00055,88462.0,88452.0,0.01130556]
[1766305959951,0.12205,88466.0,88456.0,0.01130505]
[1766305960167,0.12205,88466.0,88455.0,0.01130518]
[1766305960373,0.12205,88466.0,88453.0,0.07351234]
[1766305960374,0.12205,88466.0,88465.0,0.07711718]
[1766305960635,0.24364,88466.0,88460.0,0.00568]
[1766305960852,0.24364,88466.0,88465.0,0.07711718]
[1766305961495,0.12205,88466.0,88465.0,0.07711718]
[1766305962128,0.12159,88471.0,88466.0,0.001099]
[1766305962343,0.00568,88477.0,88466.0,0.001099]
[1766305962344,0.00568,88477.0,88466.0,0.01240277]
[1766305962547,0.00568,88477.0,88467.0,0.3153368]
[1766305962752,0.00568,88477.0,88467.0,0.32664044]
[1766305962959,0.00073867,88468.0,88467.0,0.3153368]
[1766305963216,0.12205,88481.0,88471.0,0.01130313]
[1766305963629,0.12205,88481.0,88472.0,0.01130301]
[1766305963858,0.12205,88481.0,88468.0,0.01130352]
[1766305964070,0.12159,88480.0,88469.0,0.01130339]
[1766305964281,0.12159,88479.0,88467.0,0.01130364]
[1766305964638,0.12159,88479.0,88466.0,0.01698377]
[1766305964839,0.12159,88479.0,88468.0,0.01130352]
[1766305965043,0.12159,88479.0,88467.0,0.01130364]
[1766305965247,0.12159,88474.0,88468.0,0.00568]
[1766305965447,0.12159,88472.0,88466.0,0.00568]
[1766305965631,0.12159,88477.0,88466.0,0.01698377]
[1766305966025,0.3153368,88490.0,88466.0,0.01698377]
[1766305966027,10.12159,88500.0,88487.0,0.01130109]
[1766305966246,10.0,88500.0,88490.0,0.3153368]
[1766305966455,9.998901,88500.0,88490.0,0.3153368]
[1766305966663,9.998901,88500.0,88487.0,0.00568]
[1766305966664,0.12159,88497.0,88487.0,0.00568]
[1766305966874,9.998901,88500.0,88487.0,0.00568]
[1766305967108,9.998901,88500.0,88488.0,0.01130096]
[1766305967312,9.998901,88500.0,88487.0,0.01698109]
[1766305967313,0.000549,88488.0,88487.0,0.00568]
[1766305967529,0.000549,88488.0,88482.0,0.05650819]
[1766305967530,0.000549,88488.0,88478.0,0.32663904]
[1766305967735,0.000549,88488.0,88477.0,0.01130237]
[1766305967736,0.00055,88487.0,88480.0,0.00568]
[1766305967948,0.12159,88490.0,88480.0,0.00568]
[1766305968169,0.12159,88485.0,88477.0,0.01130147]
[1766305968410,0.12159,88484.0,88464.0,0.01130403]
[1766305968608,0.01130071,88490.0,88468.0,0.01130377]
[1766305968609,0.24364,88476.0,88468.0,0.01130377]
[1766305968815,0.00024613,88476.0,88470.0,0.01130326]
[1766305969223,0.00024613,88476.0,88468.0,0.01130377]
[1766305969682,0.00024613,88476.0,88440.0,0.31733678]
[1766305969683,0.12205,88474.0,88460.0,0.3153368]
[1766305969856,0.12205,88474.0,88444.0,0.22613068]
[1766305969857,0.12205,88466.0,88459.0,0.00568]
[1766305970070,0.12159,88465.0,88463.0,0.07711718]
[1766305970238,0.12159,88465.0,88462.0,0.07711718]
[1766305970442,0.12159,88465.0,88462.0,0.08842146]
[1766305970646,0.12159,88465.0,88462.0,0.07711718]
[1766305970846,0.12159,88465.0,88462.0,0.08842146]
[1766305971094,0.12159,88465.0,88462.0,0.07711718]
[1766305971439,0.12159,88465.0,88462.0,0.07656818]
[1766305974652,0.12205,88466.0,88465.0,0.000549]
[1766305974864,0.12159,88470.0,88462.0,0.08787246]
[1766305975076,0.12159,88470.0,88463.0,0.01130416]
[1766305975255,0.12159,88470.0,88462.0,0.08787246]
[1766305975459,0.12159,88470.0,88463.0,0.01130416]
[1766305975667,0.12159,88470.0,88464.0,0.01130403]
[1766305976152,0.0001,88472.0,88470.0,0.000549]
[1766305976360,0.03396433,88480.0,88470.0,0.000549]
[1766305976361,0.03396433,88480.0,88473.0,0.01130288]
[1766305976362,0.12205,88480.0,88473.0,0.01130288]
[1766305976576,0.01130007,88495.0,88470.0,0.006229]
[1766305976577,0.22598369,88502.0,88470.0,0.006229]
[1766305976578,2.21e-06,88484.0,88481.0,0.01130186]
[1766305976785,9.623511,88500.0,88496.0,0.07711718]
[1766305976984,9.62386882,88500.0,88496.0,0.07711718]
[1766305977192,9.62386882,88500.0,88484.0,0.01130147]
[1766305977399,9.62386882,88500.0,88489.0,0.01130083]
[1766305977610,9.62386882,88500.0,88485.0,0.01698135]
[1766305977882,9.62386882,88500.0,88485.0,0.01130135]
[1766305978089,0.24364,88499.0,88487.0,1.09e-06]
[1766305978275,9.62386882,88500.0,88487.0,1.09e-06]
[1766305978507,0.24364,88499.0,88487.0,1.09e-06]
[1766305978737,9.62386882,88500.0,88487.0,0.01130218]
[1766305978948,0.24364,88499.0,88487.0,0.01130218]
[1766305979180,0.12159,88499.0,88487.0,1.09e-06]
[1766305979601,9.62386882,88500.0,88487.0,1.09e-06]
[1766305979816,0.24364,88499.0,88487.0,1.09e-06]
[1766305980066,0.00568,88499.0,88487.0,1.09e-06]
[1766305980296,0.00568,88499.0,88483.0,0.0113016]
[1766305980501,0.01697956,88499.0,88481.0,0.00568]
[1766305980709,0.12205,88486.0,88471.0,0.07711718]
[1766305980916,0.12205,88482.0,88474.0,0.00568]
[1766305981146,0.12159,88481.0,88472.0,0.01130301]
[1766305981365,0.12159,88481.0,88469.0,0.09047324]
[1766305981366,0.12159,88478.0,88469.0,0.0339566]
[1766305981564,0.12159,88478.0,88462.0,0.01130428]
[1766305981565,0.12159,88477.0,88471.0,0.00568]
[1766305981698,0.12159,88477.0,88468.0,0.00568]
[1766305981900,0.121041,88477.0,88471.0,0.01130313]
[1766305982097,0.121041,88477.0,88472.0,0.01130301]
[1766305982330,0.121041,88477.0,88473.0,0.01130288]
[1766305982710,0.121041,88477.0,88470.0,0.01130326]
[1766305982916,0.243091,88477.0,88470.0,0.01130326]
[1766305983115,0.243091,88477.0,88474.0,0.01130275]
[1766305983314,0.243091,88477.0,88470.0,0.01130326]
[1766305983893,0.243091,88477.0,88474.0,0.01130275]
[1766305984115,0.243091,88477.0,88472.0,0.01130301]
[1766305984350,0.00024616,88484.0,88474.0,0.01130275]
[1766305984584,1.6e-07,88484.0,88481.0,0.06781068]
[1766305984816,9.66910882,88500.0,88487.0,0.05650547]
[1766305984817,0.00568,88496.0,88487.0,0.05650547]
[1766305985013,9.62386882,88500.0,88496.0,0.000304]
[1766305985218,9.62386882,88500.0,88496.0,4e-06]
[1766305985420,0.11875,88498.0,88491.0,0.01130058]
[1766305985963,0.11875,88498.0,88490.0,0.01130071]
[1766305986166,0.11875,88498.0,88491.0,0.01130058]
[1766305986404,0.11875,88498.0,88493.0,0.01130032]
[1766305986612,9.62386882,88500.0,88490.0,0.01130071]
[1766305986816,0.001095,88493.0,88492.0,0.01130045]
[1766305987033,9.74261882,88500.0,88492.0,0.01130045]
[1766305987236,9.74261882,88500.0,88490.0,0.01130071]
[1766305987437,9.62386882,88500.0,88491.0,0.01130058]
[1766305987609,0.11875,88499.0,88486.0,0.06780692]
[1766305987831,0.000545,88491.0,88488.0,0.06780557]
[1766305988033,0.11875,88499.0,88496.0,0.01129994]
[1766305988231,0.11875,88499.0,88495.0,0.01130007]
[1766305988620,0.11875,88499.0,88494.0,0.0113002]
[1766305988843,0.11875,88499.0,88495.0,0.01130007]
[1766305989028,0.11875,88499.0,88494.0,0.0113002]
[1766305989409,0.118201,88499.0,88493.0,0.01130032]
[1766305989541,9.62386882,88500.0,88494.0,0.0113002]
[1766305989747,9.62386882,88500.0,88497.0,0.01129981]
[1766305990757,9.62386882,88500.0,88497.0,0.06779832]
[1766305990959,8.98803704,88500.0,88497.0,0.06779832]
[1766305991188,8.86292704,88500.0,88497.0,0.06779832]
[1766305991430,0.00043069,88498.0,88497.0,0.01129981]
[1766305991789,8.86292704,88500.0,88497.0,0.0677989]
[1766305991970,8.86292704,88500.0,88496.0,0.01697994]
[1766305991971,0.001099,88497.0,88496.0,0.01697994]
[1766305992173,8.86292704,88500.0,88497.0,0.01129981]
[1766305992408,8.86182804,88500.0,88499.0,0.05649781]
[1766305993207,8.86182804,88500.0,88497.0,0.01129981]
[1766305993408,8.86182804,88500.0,88496.0,0.01697994]
[1766305993612,8.86182804,88500.0,88497.0,0.01129981]
[1766305994165,8.84508804,88500.0,88498.0,0.05649845]
[1766305994373,7.44450607,88500.0,88498.0,0.05649845]
[1766305994560,7.33612244,88500.0,88498.0,0.05649845]
[1766305994776,7.00069091,88500.0,88498.0,0.05649845]
[1766305994978,6.67583802,88500.0,88498.0,0.05649845]
[1766305995187,6.46452479,88500.0,88498.0,0.05649845]
[1766305995412,6.20946589,88500.0,88498.0,0.05649845]
[1766305995613,6.01165994,88500.0,88498.0,0.05649845]
[1766305995802,5.95507532,88500.0,88498.0,0.05649845]
[1766305995974,5.7287368,88500.0,88498.0,0.05649845]
[1766305996346,5.7287368,88500.0,88496.0,0.05092]
[1766305996347,0.000549,88498.0,88496.0,0.05092]
[1766305996537,5.7287368,88500.0,88496.0,0.05092]
[1766305997810,5.7287368,88500.0,88496.0,0.06221994]
[1766305998011,5.7287368,88500.0,88498.0,0.05649845]
[1766305998876,5.65108679,88500.0,88498.0,0.05649845]
[1766305999217,5.65108679,88500.0,88497.0,0.01129981]
[1766305999423,5.65108679,88500.0,88496.0,0.05092]
[1766306000952,5.65108679,88500.0,88496.0,0.050371]
[1766306001362,5.65108679,88500.0,88496.0,0.06167094]
[1766306001566,5.65108679,88500.0,88496.0,0.050371]
[1766306002164,5.65053779,88500.0,88496.0,0.050371]
[1766306002362,5.65053779,88500.0,88497.0,0.01129981]
[1766306005250,5.65053779,88500.0,88496.0,0.06167094]
[1766306005641,5.65053779,88500.0,88497.0,0.01129981]
[1766306007213,5.65053779,88500.0,88496.0,0.06167094]
[1766306007460,5.65053779,88500.0,88497.0,0.01129981]
[1766306008245,5.65053779,88500.0,88498.0,0.05649845]
[1766306009245,4.75227454,88500.0,88499.0,0.01355947]
[1766306009497,2.33636479,88500.0,88499.0,0.01355947]
[1766306009715,1.35008745,88500.0,88498.0,0.05649845]
[1766306009922,1.18545781,88500.0,88498.0,0.05649845]
[1766306010130,1.03651137,88500.0,88498.0,0.05649845]
[1766306010365,1.00256743,88500.0,88498.0,0.05649845]
[1766306010577,0.3520672,88500.0,88498.0,0.08671332]
[1766306010785,0.08520128,88500.0,88498.0,0.05649845]
[1766306010957,1e-08,88500.0,88498.0,0.05649845]
[1766306011162,0.00024604,88506.0,88504.0,0.05649455]
[1766306011368,0.00033898,88506.0,88504.0,0.05649455]
[1766306012700,0.00033898,88506.0,88503.0,0.01697905]
[1766306012913,0.00033898,88506.0,88504.0,0.05649462]
[1766306013066,0.00033898,88506.0,88503.0,0.01697905]
[1766306013485,0.00033898,88506.0,88504.0,0.05649462]
[1766306013691,0.00033898,88506.0,88503.0,0.01697905]
[1766306015401,0.00033898,88506.0,88502.0,0.01129917]
[1766306015402,0.000549,88503.0,88502.0,0.03021487]
[1766306015650,0.00055,88502.0,88494.0,0.03021487]
[1766306015812,0.00055,88502.0,88491.0,0.00568]
[1766306015813,0.00055,88502.0,88492.0,0.03021487]
[1766306016210,0.00055,88502.0,88480.0,0.01130198]
[1766306016211,0.00568,88504.0,88483.0,0.15178]
[1766306016497,0.00568,88504.0,88486.0,0.0884184]
[1766306016670,0.00568,88503.0,88491.0,0.01130058]
[1766306016845,0.00568,88503.0,88493.0,0.42992517]
[1766306017049,0.00568,88502.0,88491.0,0.01130058]
[1766306017251,0.00568,88502.0,88490.0,0.42992517]
[1766306017479,0.000549,88491.0,88490.0,0.63007374]
[1766306017684,0.00568,88502.0,88490.0,0.01130071]
[1766306017855,0.00568,88502.0,88490.0,0.63007374]
[1766306018072,0.00568,88501.0,88490.0,0.63007374]
[1766306018272,0.00568,88501.0,88490.0,0.64137445]
[1766306018662,0.00568,88501.0,88481.0,0.05141805]
[1766306018871,0.00568,88501.0,88483.0,0.0169816]
[1766306019701,0.00568,88501.0,88484.0,0.01130147]
[1766306019900,0.00055,88486.0,88483.0,0.0169816]
[1766306020052,0.00568,88501.0,88484.0,0.01130147]
[1766306020314,0.00568,88501.0,88486.0,0.07711718]
[1766306021071,0.00568,88501.0,88486.0,0.11723337]
[1766306021656,0.32977,88501.0,88486.0,0.03564825]
[1766306021859,0.32977,88501.0,88475.0,0.01130262]
[1766306021860,0.3021,88497.0,88475.0,0.01130262]
[1766306022068,0.3021,88497.0,88473.0,0.00568]
[1766306022069,0.01129994,88496.0,88473.0,0.00568]
[1766306022280,0.0169793,88501.0,88467.0,0.01130364]
[1766306022281,0.01130109,88487.0,88468.0,0.06013941]
[1766306022496,0.01130109,88487.0,88467.0,0.07711718]
[1766306022497,0.33539135,88485.0,88467.0,0.07711718]
[1766306022700,0.00568,88484.0,88470.0,0.63026291]
[1766306023104,0.00568,88484.0,88467.0,0.07711718]
[1766306025570,0.32409,88489.0,88467.0,0.07711718]
[1766306025571,0.32409,88489.0,88467.0,0.08842082]
[1766306025771,0.00568,88483.0,88468.0,0.01130352]
[1766306026090,0.00568,88483.0,88467.0,0.08842082]
[1766306026292,0.00568,88483.0,88467.0,0.07711718]
[1766306028505,0.00568,88483.0,88473.0,0.01130288]
[1766306028720,0.00568,88483.0,88475.0,0.01130262]
[1766306028922,0.3021,88496.0,88483.0,0.000549]
[1766306029128,0.04524,88486.0,88483.0,0.000549]
[1766306029333,0.00568,88485.0,88481.0,0.07711718]
[1766306030778,0.62619,88496.0,88485.0,0.000549]
[1766306030986,0.04524,88490.0,88485.0,0.000549]
[1766306031183,0.62619,88496.0,88485.0,0.000549]
[1766306031385,0.05092,88495.0,88482.0,0.01356208]
[1766306031609,0.00568,88494.0,88482.0,0.01130173]
[1766306031817,0.04524,88497.0,88482.0,0.01130173]
[1766306031818,0.00568,88493.0,88482.0,0.01130173]
[1766306032219,0.00568,88493.0,88481.0,0.07711718]
[1766306032680,0.00568,88493.0,88472.0,0.06219456]
[1766306032883,0.00568,88493.0,88479.0,0.01130211]
[1766306033082,0.00568,88493.0,88480.0,0.01130198]
[1766306033257,0.00568,88492.0,88482.0,0.01130173]
[1766306033395,0.04524,88495.0,88480.0,0.64156489]
[1766306033396,0.00568,88491.0,88480.0,0.63026291]
[1766306033809,0.00033898,88506.0,88482.0,0.07711718]
[1766306034025,0.00033898,88506.0,88491.0,0.000549]
[1766306034026,0.00568,88505.0,88491.0,0.000549]
[1766306034430,0.00568,88505.0,88488.0,0.01130096]
[1766306035028,0.00568,88505.0,88487.0,0.01130109]
[1766306035607,0.00568,88505.0,88486.0,0.01130122]
[1766306035767,0.32977,88505.0,88487.0,0.01130109]
[1766306035974,0.32977,88505.0,88486.0,0.01130122]
[1766306036197,0.32977,88505.0,88485.0,0.01130135]
[1766306036575,0.32977,88505.0,88486.0,0.01130122]
[1766306036996,0.04557898,88506.0,88497.0,0.07711718]
[1766306036997,0.00033898,88506.0,88497.0,0.07711718]
[1766306037180,0.00568,88504.0,88486.0,0.01130122]
[1766306037310,0.00568,88504.0,88490.0,0.63026291]
[1766306037980,0.00568,88504.0,88485.0,0.01130135]
[1766306038187,0.00568,88504.0,88483.0,0.0169816]
[1766306038383,0.00568,88504.0,88486.0,0.01130122]
[1766306038616,0.32977,88504.0,88483.0,0.00568]
[1766306038819,0.32977,88504.0,88483.0,0.0169816]
[1766306039267,0.32977,88504.0,88486.0,0.01130122]
[1766306039461,0.32977,88504.0,88483.0,0.0169816]